fUST/lending_fUST_20240319
["ID","MTS","AMOUNT","RATE_DAILY","PERIOD"]
[319552027,1710846929738,-169.906622,0.00052898,4]
[319552028,1710846929757,-1197.34622779,0.000529,30]
[319552029,1710846929768,-776.41349059,0.000529,30]
[319552030,1710846929779,-169.906622,0.000529,30]
[319552031,1710846929790,-20712.66731924,0.000529,30]
[319552033,1710846955801,-174.81005296,0.000528,2]
[319552034,1710846955825,-1197.34622779,0.00052898,4]
[319552035,1710846955848,-169.906622,0.00052899,4]
[319552036,1710846955872,-23457.93709725,0.000529,30]
[319552039,1710846960586,-25000.0,0.000529,30]
[319552040,1710846964117,-25000.0,0.000529,30]
[319552042,1710846968788,-9547.28398706,0.000529,30]
[319552043,1710846968813,-15452.71601294,0.000529,30]
[319552044,1710846971037,1197.34622779,0.00052899,4]
[319552045,1710846972018,-25000.0,0.000529,30]
[319552046,1710846974457,169.906622,0.00052899,4]
[319552047,1710846975460,-25000.0,0.000529,30]
[319552049,1710846979119,-25000.0,0.000529,30]
[319552050,1710847072285,-156.99999,0.00077,120]
[319552051,1710847072323,-2005.42,0.0008,120]
[319552052,1710847084825,300.0,0.00052899,10]
[319552053,1710847099769,9492.07246147,0.00052,2]
[319552054,1710847167536,-25000.0,0.000529,30]
[319552055,1710847168584,-25000.0,0.000529,30]
[319552056,1710847170610,1239.34612194,0.00052899,4]
[319552057,1710847175401,154.93802479,0.00052,4]
[319552058,1710847189272,154.93802479,0.00052,4]
[319552059,1710847198787,-453.71601294,0.000529,30]
[319552060,1710847198894,-3732.42661243,0.000529,30]
[319552061,1710847209284,154.93802479,0.00052,4]
[319552062,1710847210516,674.49980699,0.00050412,15]
[319552063,1710847233270,154.93802479,0.00052,4]
[319552064,1710847249269,154.93802479,0.00052,4]
[319552065,1710847259936,157.58,0.00052899,7]
[319552067,1710847273266,197.58906536,0.00052899,4]
[319552069,1710847380393,154.93802479,0.0004,4]
[319552070,1710847397625,10017.04737452,0.0005289,60]
[319552072,1710847408303,-5360.14136169,0.000529,30]
[319552073,1710847408427,-27613.24893059,0.000529,30]
[319552074,1710847424484,-50000.0,0.000529,30]
[319552075,1710847441702,2946.13066934,0.00052899,4]
[319552076,1710847441736,-47053.86933066,0.000529,30]
[319552078,1710847458297,-25000.0,0.000529,30]
[319552081,1710847513103,187.57019599,0.00031,2]
[319552082,1710847516562,1004.81129007,0.000449,120]
[319552083,1710847544167,-331.88173875,0.000529,30]
[319552084,1710847544186,-500.0,0.00068,120]
[319552085,1710847544206,-1112.52934674,0.00085,120]
[319552086,1710847564355,602.0,0.0005,30]
[319552088,1710847630097,-156.99999,0.00067,120]
[319552089,1710847630119,-1347.01450627,0.00068999,7]
[319552090,1710847630142,-500.0,0.00069,120]
[319552091,1710847630163,-500.0,0.0007,120]
[319552092,1710847630184,-500.0,0.00071,120]
[319552093,1710847630209,-500.0,0.00078,120]
[319552094,1710847630230,-892.89065326,0.00085,120]
[319552095,1710847630250,-172.0,0.00087,2]
[319552096,1710847630269,-22998.7,0.00087,120]
[319552097,1710847630289,-156.99999,0.00087,120]
[319552098,1710847630310,-15960.01999,0.00088,120]
[319552099,1710847630328,-150.0,0.00088999,120]
[319552100,1710847630347,-155.0,0.00089,7]
[319552101,1710847630367,-1260.30194935,0.00089998,7]
[319552102,1710847630387,-415.30834004,0.00089998,7]
[319552103,1710847630406,-302.26571009,0.00089998,7]
[319552104,1710847630425,-154.92253873,0.00089998,12]
[319552105,1710847630446,-564.91344695,0.00089998,30]
[319552106,1710847630472,-351.57848942,0.00089998,7]
[319552107,1710847630493,-3105.11300046,0.00089998,2]
[319552108,1710847630514,-212.3832775,0.00089998,4]
[319552109,1710847630534,-157.55,0.00089999,60]
[319552110,1710847630555,-157.55,0.00089999,60]
[319552111,1710847630574,-157.55,0.00089999,60]
[319552112,1710847630595,-157.55,0.00089999,60]
[319552113,1710847630616,-157.55,0.00089999,60]
[319552114,1710847630636,-157.55,0.00089999,60]
[319552115,1710847630656,-157.55,0.00089999,60]
[319552116,1710847630677,-157.55,0.00089999,60]
[319552117,1710847630697,-157.55,0.00089999,60]
[319552118,1710847630723,-322.26,0.00089999,60]
[319552119,1710847630744,-150.0,0.00089999,120]
[319552120,1710847630768,-172.0,0.0009,2]
[319552121,1710847630788,-1000.0,0.0009,120]
[319552122,1710847630809,-53758.93852793,0.0009,120]
[319552123,1710847635128,-456851.23101,0.0009,120]
[319552124,1710847648089,-200.0,0.0008982,120]
[319552125,1710847648108,-1496.68278474,0.00089999,7]
[319552126,1710847648128,-173.0,0.0009,2]
[319552127,1710847648147,-71853.58546526,0.0009,120]
[319552128,1710847757068,300.0,0.00021,9]
[319552129,1710847757594,300.0,0.000225,10]
[319552130,1710847758184,-500.0,0.00065,120]
[319552131,1710847758205,-156.99999,0.00067,120]
[319552132,1710847758231,-1947.4,0.00086,120]
[319552133,1710847758252,-156.99999,0.00087,120]
[319552134,1710847758276,-2900.38,0.00087,120]
[319552135,1710847758301,-1197.3462278,0.00089998,7]
[319552136,1710847758322,-212.3832775,0.00089999,4]
[319552137,1710847758344,-264.98476629,0.0009,31]
[319552138,1710847758365,-3174.48732841,0.0009,120]
[319552139,1710847758394,300.0,0.00024,11]
[319552140,1710847758979,300.0,0.000255,12]
[319552141,1710847759622,300.0,0.00027,13]
[319552142,1710847760116,-72072.77305724,0.0009,120]
[319552143,1710847760343,300.0,0.000285,13]
[319552144,1710847761073,300.0,0.0003,14]
[319552145,1710847761944,300.0,0.000315,15]
[319552146,1710847762644,300.0,0.00033,16]
[319552147,1710847763629,300.0,0.000345,17]
[319552148,1710847764266,300.0,0.00036,18]
[319552149,1710847764795,503.9944,0.000375,19]
[319552150,1710847808144,636.75612226,0.00040019,2]
[319552229,1710847832369,-0.785335,0.00041771,120]
[319552232,1710847832383,-499.214665,0.00041771,120]
[319552233,1710847832395,-2000.0,0.00087,120]
[319552234,1710847832406,-271.27620634,0.00087,120]
[319552236,1710847832417,-2000.0,0.00088,120]
[319552238,1710847832428,-2000.0,0.00089,120]
[319552240,1710847832438,-292.736908,0.00089199,30]
[319552242,1710847832450,-250.0,0.00089299,120]
[319552243,1710847832462,-157.3671609,0.00089999,4]
[319552244,1710847832474,-264.98476628,0.0009,31]
[319552245,1710847832485,-948498.60461116,0.0009,120]
[319552246,1710847832496,-2000.0,0.0009,120]
[319552247,1710847832507,-500.0,0.0009,120]
[319552248,1710847832519,-481.24163056,0.00090799,2]
[319552249,1710847832530,-843.79530176,0.00090899,2]
[319552250,1710847832658,-150.0,0.00090999,120]
[319552251,1710847832668,-150.0,0.00091999,120]
[319552252,1710847832677,-2000.0,0.00095,120]
[319552253,1710847832687,-1500.0,0.00099,120]
[319552254,1710847832696,-440.50905858,0.001,120]
[319552357,1710847838040,-4.48942072,0.001,120]
[319552359,1710847838051,-7327.55142904,0.001,120]
[319552362,1710847838063,-2227.45009166,0.001,120]
[319552364,1710847838072,-2000.0,0.001,120]
[319552366,1710847838081,-232.0,0.0010997,35]
[319552367,1710847838091,-232.0,0.0010998,35]
[319552370,1710847838100,-232.0,0.0010999,35]
[319552371,1710847838110,-94235.26328448,0.0011,120]
[319552374,1710847838124,-858.90506476,0.0011,120]
[319552376,1710847838135,-306.8741116,0.0011,120]
[319552595,1710847841587,-500.0,0.0009,120]
[319552596,1710847841597,-500.0,0.0009,120]
[319552597,1710847841606,-109394.41718568,0.0011,120]
[319552598,1710847841621,-188340.00000038,0.0011,120]
[319552637,1710847843186,-1905.94124102,0.0011,120]
[319552639,1710847843200,-12830.55937776,0.0011,120]
[319552655,1710847844172,-63393.9998047,0.0011,120]
[319552656,1710847844226,-16430.5008,0.0011,120]
[319552727,1710847846146,-0.33119404,0.000529,30]
[319552729,1710847846168,-625.5,0.000529,30]
[319552750,1710847850370,154.93802479,0.0004,4]
[319552751,1710847863834,154.90705577,0.00040019,4]
[319552752,1710847879830,154.90705577,0.00040019,4]
[319552754,1710847895840,154.90705577,0.00040019,4]
[319552755,1710847913831,154.90705577,0.00040019,4]
[319552756,1710847935837,154.90705577,0.00040019,4]
[319552757,1710847953827,197.74391046,0.00040019,4]
[319552758,1710847983494,300.0,0.0004177,5]
[319552759,1710848029125,283.71554384,0.00052,2]
[319552760,1710848044427,782.30863304,0.00040019,2]
[319552761,1710848225860,394.590594,0.00051899,2]
[319552762,1710848242872,6384.96354523,0.00052,2]
[319552763,1710848248922,-0.03645477,0.00052,2]
[319552764,1710848254769,-1197.34622779,0.00052799,4]
[319552765,1710848254793,-915.19227971,0.00052799,2]
[319552766,1710848254816,-213.46505019,0.000528,2]
[319552767,1710848254839,-425.48083276,0.00052897,4]
[319552768,1710848254862,-1239.34612194,0.00052899,4]
[319552769,1710848254885,-776.41349059,0.00052899,4]
[319552770,1710848254910,-285.22676191,0.00052899,4]
[319552771,1710848254936,-169.906622,0.00052899,4]
[319552772,1710848254961,-2946.13066934,0.00052899,4]
[319552773,1710848254985,-455.21619354,0.00052899,4]
[319552774,1710848255010,-297.08,0.00052899,7]
[319552775,1710848255036,-16079.19575023,0.000529,30]
[319552790,1710848259063,-6151.30671535,0.000529,30]
[319552791,1710848259087,-18848.69328465,0.000529,30]
[319552792,1710848263189,-25000.0,0.000529,30]
[319552793,1710848267666,-25000.0,0.000529,30]
[319552797,1710848273787,-1197.34622779,0.00052899,4]
[319552798,1710848273811,-781.34148329,0.00052899,2]
[319552799,1710848273834,-353.09,0.00052899,7]
[319552800,1710848273859,-22668.22228892,0.000529,30]
[319552801,1710848277724,-25000.0,0.000529,30]
[319552802,1710848281513,-25000.0,0.000529,30]
[319552803,1710848285321,-8482.08442643,0.000529,30]
[319552804,1710848296863,600.57285733,0.0006,2]
[319552805,1710848328719,24399.42714267,0.00061,2]
[319552809,1710848352390,3712.981381,0.00039662,7]
[319552810,1710848385277,12800.0,0.0006,2]
[319552812,1710848407631,4.93419257,0.00055988,30]
[319552819,1710848466532,1021.04916172,0.0005,120]
[319552820,1710848578003,23978.91438351,0.0005,2]
[319552821,1710848578030,25000.0,0.0005,2]
[319552822,1710848578178,25000.0,0.0005,2]
[319552823,1710848699080,-155.18928239,0.00049999,4]
[319552824,1710848699118,-49689.62143522,0.0005,2]
[319552825,1710848702004,-50000.0,0.0005,2]
[319552826,1710848727883,-831.0,0.0005,2]
[319552827,1710848739099,-334.1114627,0.0005,2]
[319552843,1710848819087,-1672.42,0.000528,30]
[319552844,1710848819113,-1655.16,0.000528,30]
[319552845,1710848826714,405.02,0.00049,2]
[319552846,1710848827164,-5661.77998,0.0005,2]
[319552894,1710849032218,-1161.88280803,0.0005,2]
[319552895,1710849032231,-1802.72563668,0.0005,2]
[319552896,1710849032243,-124636.81945514,0.0005,2]
[319552897,1710849032252,-150.0,0.0005,30]
[319552898,1710849032261,-596.0191614,0.00051974,2]
[319552899,1710849032271,-2752.2050856,0.00052259,2]
[319552900,1710849032280,-1771.2217488,0.00052784,2]
[319552901,1710849032289,-1502.46068589,0.000528,2]
[319552902,1710849032298,-149999.0,0.000529,30]
[319552903,1710849032307,-796.6616823,0.00053411,2]
[319552904,1710849032318,-1374.6442278,0.00053926,2]
[319552905,1710849032327,-197.295297,0.00054899,30]
[319552906,1710849032337,-947.7420049,0.00055919,2]
[319552907,1710849032346,-681.97998754,0.00055988,30]
[319552908,1710849032356,-623.34570901,0.00058788,30]
[319552909,1710849032365,-500.0,0.00059,120]
[319552910,1710849032375,-171.24330248,0.0006,120]
[319552911,1710849032384,-500.0,0.0006,120]
[319552912,1710849032394,-284.21280534,0.00061,120]
[319552913,1710849032403,-156.99999,0.00067,120]
[319552914,1710849032415,-500.0,0.0007,120]
[319552915,1710849032425,-313.99998,0.00077,120]
[319552916,1710849032434,-250.0,0.00077,120]
[319552917,1710849032444,-11367.77440405,0.0008,120]
[319552918,1710849032454,-500.0,0.0008,120]
[319552919,1710849032462,-197.295297,0.00082348,30]
[319552920,1710849032471,-2000.0,0.00083,120]
[319552921,1710849032480,-1947.4,0.00084,120]
[319552922,1710849032489,-2000.0,0.00085,120]
[319552923,1710849032499,-2000.0,0.00086,120]
[319552924,1710849032508,-2000.0,0.00087,120]
[319552925,1710849032517,-2000.0,0.00088,120]
[319552926,1710849032527,-2000.0,0.00089,120]
[319552927,1710849032537,-188.94404572,0.00089999,120]
[319552928,1710849032546,-2000.0,0.0009,120]
[319552929,1710849032556,-2000.0,0.00091,120]
[319552930,1710849032567,-5000.0,0.00091797,120]
[319552931,1710849032576,-2000.0,0.00092,120]
[319552932,1710849032586,-2000.0,0.00093,120]
[319552933,1710849032595,-2000.0,0.00094,120]
[319552934,1710849032604,-2000.0,0.00095,120]
[319552935,1710849032614,-1000.0,0.00095,120]
[319552936,1710849032623,-5000.0,0.00095469,120]
[319552937,1710849032632,-2000.0,0.00096,120]
[319552938,1710849032641,-2000.0,0.00097,120]
[319552939,1710849032651,-237.5137744,0.00097919,30]
[319552940,1710849032660,-2000.0,0.00098,120]
[319552941,1710849032669,-1000.0,0.00098,120]
[319552942,1710849032678,-2000.0,0.00099,120]
[319552943,1710849032687,-5000.0,0.00099288,120]
[319552944,1710849032696,-30000.0,0.0009987,120]
[319552945,1710849032705,-37465.08,0.00099987,120]
[319552946,1710849032715,-10000.0,0.00099989,120]
[319552947,1710849032724,-2000.0,0.001,120]
[319552948,1710849032734,-2000.0,0.001,120]
[319552949,1710849032743,-1500.0,0.001,120]
[319552950,1710849032752,-5000.0,0.0010326,120]
[319552951,1710849032761,-10000.0,0.00104578,120]
[319552952,1710849032771,-5000.0,0.0010739,120]
[319552953,1710849032780,-327.82,0.00109498,60]
[319552954,1710849032790,-327.82,0.00109498,60]
[319552955,1710849032799,-327.82,0.00109498,60]
[319552956,1710849032808,-327.82,0.00109498,60]
[319552957,1710849032818,-327.82,0.00109498,60]
[319552958,1710849032827,-327.82,0.00109498,60]
[319552959,1710849032836,-327.82,0.00109498,60]
[319552960,1710849032845,-327.82,0.00109498,60]
[319552961,1710849032945,-169.906622,0.00109499,30]
[319552962,1710849032956,-21004.5,0.00109499,120]
[319552963,1710849032966,-21004.5,0.00109499,120]
[319552964,1710849032975,-21004.5,0.00109499,120]
[319552965,1710849032986,-21004.5,0.00109499,120]
[319552966,1710849032995,-21004.5,0.00109499,120]
[319552967,1710849033005,-21004.5,0.00109499,120]
[319552968,1710849033014,-21004.5,0.00109499,120]
[319552969,1710849033024,-249998.5,0.001095,30]
[319552970,1710849033034,-433.11746754,0.001096,2]
[319552971,1710849033043,-10000.0,0.001097,120]
[319552972,1710849033054,-162.0,0.0010997,35]
[319552973,1710849033064,-150.5,0.0010997,35]
[319552974,1710849033076,-162.0,0.0010998,35]
[319552975,1710849033085,-150.5,0.0010998,35]
[319552976,1710849033094,-162.0,0.0010999,35]
[319552977,1710849033104,-150.5,0.0010999,35]
[319552978,1710849033117,-325.74670054,0.00109999,14]
[319552979,1710849033126,-193.49033037,0.00109999,14]
[319552980,1710849033138,-21004.5,0.00109999,120]
[319552981,1710849033148,-21004.5,0.00109999,120]
[319552982,1710849033158,-21004.5,0.00109999,120]
[319552983,1710849033168,-21004.5,0.00109999,120]
[319552984,1710849033177,-21004.5,0.00109999,120]
[319552985,1710849033186,-21004.5,0.00109999,120]
[319552986,1710849033196,-21004.5,0.00109999,120]
[319552987,1710849033206,-21004.5,0.00109999,120]
[319552988,1710849033216,-21004.5,0.00109999,120]
[319552989,1710849033225,-21004.5,0.00109999,120]
[319552990,1710849033235,-21004.5,0.00109999,120]
[319552991,1710849033244,-21004.5,0.00109999,120]
[319552992,1710849033253,-21004.5,0.00109999,120]
[319552993,1710849033263,-21004.5,0.00109999,120]
[319552994,1710849033273,-21004.5,0.00109999,120]
[319552995,1710849033282,-21004.5,0.00109999,120]
[319552996,1710849033291,-21004.63856954,0.00109999,120]
[319552997,1710849033301,-3225897.48912962,0.0011,120]
[319552998,1710849033310,-2000.0,0.0011,120]
[319552999,1710849033322,-10000.0,0.00111686,120]
[319553000,1710849033331,-2000.0,0.0012,120]
[319553001,1710849033341,-498.70077875,0.00128486,90]
[319553002,1710849033351,-2000.0,0.0013,120]
[319553003,1710849033362,-10000.0,0.00135883,120]
[319553004,1710849033370,-2000.0,0.0014,120]
[319553005,1710849033379,-2000.0,0.0015,120]
[319553006,1710849033389,-10000.0,0.00165322,120]
[319553007,1710849033398,-250.0,0.00198356,120]
[319553008,1710849033407,-833.0,0.002,120]
[319553009,1710849033416,-10000.0,0.002,120]
[319553010,1710849033425,-2000.0,0.002,120]
[319553011,1710849033435,-10000.0,0.00201139,120]
[319553012,1710849033445,-10000.0,0.00244717,120]
[319553013,1710849033454,-250.0,0.00273972,120]
[319553014,1710849033463,-500.0,0.00273972,120]
[319553015,1710849033472,-500.0,0.00273972,120]
[319553016,1710849033486,-1250.01,0.00273972,120]
[319553017,1710849033501,-500.0,0.00273972,120]
[319553018,1710849033511,-332.55229841,0.00273972,120]
[319553019,1710849033521,-500.0,0.00273972,120]
[319553020,1710849033533,-500.0,0.00273972,120]
[319553021,1710849033543,-500.0,0.00273972,120]
[319553022,1710849033553,-236.0929721,0.00273972,2]
[319553023,1710849033562,-500.0,0.00273972,120]
[319553024,1710849033575,-3165.79,0.00273972,120]
[319553025,1710849033585,-1065.12,0.00273972,2]
[319553026,1710849033595,-500.0,0.00273972,120]
[319553027,1710849033604,-500.0,0.00273972,120]
[319553028,1710849033614,-584.3820137,0.00273972,120]
[319553029,1710849033623,-500.0,0.00273972,120]
[319553030,1710849033633,-500.0,0.00273972,120]
[319553031,1710849033643,-500.0,0.00273972,120]
[319553032,1710849033652,-500.0,0.00273972,120]
[319553033,1710849033662,-1053.06,0.00273972,120]
[319553034,1710849033671,-500.0,0.00273972,120]
[319553035,1710849033681,-3197.28,0.00273972,120]
[319553036,1710849033691,-500.0,0.00273972,120]
[319553037,1710849033757,-500.0,0.00273972,120]
[319553038,1710849033767,-833.35,0.00273972,120]
[319553039,1710849033777,-675.66,0.00273972,120]
[319553040,1710849033786,-500.0,0.00273972,120]
[319553041,1710849033796,-500.0,0.00273972,120]
[319553042,1710849033806,-261.9599716,0.00273972,120]
[319553043,1710849033817,-500.0,0.00273972,120]
[319553044,1710849033826,-500.0,0.00273972,120]
[319553045,1710849033836,-500.0,0.00273972,120]
[319553046,1710849033846,-500.0,0.00273972,120]
[319553047,1710849033856,-1164.4,0.00273972,120]
[319553048,1710849033865,-500.0,0.00273972,120]
[319553049,1710849033875,-500.0,0.00273972,120]
[319553050,1710849033885,-5000.0,0.00273972,120]
[319553051,1710849033894,-40934.15,0.00273972,120]
[319553052,1710849033905,-737.99,0.00273972,10]
[319553053,1710849033915,-1351.91,0.00273972,120]
[319553054,1710849033924,-342.70959705,0.00273972,120]
[319553055,1710849033934,-3523.39,0.00273972,120]
[319553056,1710849033943,-500.0,0.00273972,120]
[319553057,1710849033953,-500.0,0.00273972,120]
[319553058,1710849033962,-1000.0,0.00273972,7]
[319553059,1710849033971,-1957.41,0.00273972,120]
[319553060,1710849033981,-12809.13,0.00273972,120]
[319553061,1710849033991,-500.0,0.00273972,120]
[319553062,1710849034001,-692.97,0.00273972,120]
[319553063,1710849034011,-692.97,0.00273972,120]
[319553064,1710849034020,-692.97,0.00273972,120]
[319553065,1710849034030,-692.97,0.00273972,120]
[319553066,1710849034040,-692.97,0.00273972,120]
[319553067,1710849034049,-692.97,0.00273972,120]
[319553068,1710849034059,-692.97,0.00273972,120]
[319553069,1710849034070,-692.97,0.00273972,120]
[319553070,1710849034080,-692.97,0.00273972,120]
[319553071,1710849034090,-692.97,0.00273972,120]
[319553072,1710849034099,-692.97,0.00273972,120]
[319553073,1710849034109,-692.97,0.00273972,120]
[319553074,1710849034119,-692.97,0.00273972,120]
[319553075,1710849034132,-692.97,0.00273972,120]
[319553076,1710849034142,-692.97,0.00273972,120]
[319553077,1710849034151,-692.97,0.00273972,120]
[319553078,1710849034161,-692.97,0.00273972,120]
[319553079,1710849034171,-692.97,0.00273972,120]
[319553080,1710849034181,-692.97,0.00273972,120]
[319553081,1710849034190,-1843.63,0.00273972,120]
[319553082,1710849034199,-692.97,0.00273972,120]
[319553083,1710849034209,-692.97,0.00273972,120]
[319553084,1710849034219,-692.97,0.00273972,120]
[319553085,1710849034230,-692.97,0.00273972,120]
[319553086,1710849034239,-693.05820913,0.00273972,120]
[319553087,1710849034249,-500.0,0.00273972,120]
[319553088,1710849034259,-500.0,0.00273972,120]
[319553089,1710849034269,-623.97,0.00273972,120]
[319553090,1710849034279,-833.34,0.00273972,120]
[319553091,1710849034289,-259.45,0.00273972,120]
[319553092,1710849034298,-3605.87,0.00273972,120]
[319553093,1710849034308,-500.0,0.00273972,120]
[319553094,1710849034319,-500.0,0.00273973,120]
[319553095,1710849034329,-500.0,0.00273973,120]
[319553096,1710849034339,-500.0,0.00273973,120]
[319553097,1710849034348,-500.0,0.00273973,120]
[319553098,1710849034357,-500.0,0.00273973,120]
[319553099,1710849034366,-500.0,0.00273973,120]
[319553100,1710849034376,-500.0,0.00273973,120]
[319553101,1710849034385,-500.0,0.00273973,120]
[319553102,1710849034395,-500.0,0.00273973,120]
[319553103,1710849034404,-500.0,0.00273973,120]
[319553104,1710849034414,-500.0,0.00273973,120]
[319553105,1710849034423,-500.0,0.00273973,120]
[319553106,1710849034433,-500.0,0.00273973,120]
[319553107,1710849034442,-500.0,0.00273973,120]
[319553108,1710849034452,-500.0,0.00273973,120]
[319553109,1710849034461,-500.0,0.00273973,120]
[319553110,1710849034471,-500.0,0.00273973,120]
[319553111,1710849034480,-500.0,0.00273973,120]
[319553112,1710849034490,-500.0,0.00273973,120]
[319553113,1710849034499,-500.0,0.00273973,120]
[319553114,1710849034509,-10000.0,0.00297735,120]
[319553115,1710849034519,-250.0,0.00298356,120]
[319553116,1710849034528,-20000.0,0.003,120]
[319553117,1710849034537,-2000.0,0.003,120]
[319553118,1710849034547,-10000.0,0.00362241,120]
[319553119,1710849034557,-250.0,0.00398356,120]
[319553120,1710849034567,-20000.0,0.004,120]
[319553121,1710849034576,-2000.0,0.004,120]
[319553122,1710849034586,-10000.0,0.00440721,120]
[319553123,1710849034596,-500.0,0.0049315,120]
[319553124,1710849034605,-1250.01,0.0049315,120]
[319553125,1710849034615,-500.0,0.0049315,120]
[319553126,1710849034624,-500.0,0.0049315,120]
[319553127,1710849034633,-500.0,0.0049315,120]
[319553128,1710849034643,-548.65152805,0.0049315,120]
[319553129,1710849034653,-500.0,0.0049315,120]
[319553130,1710849034662,-3165.79,0.0049315,120]
[319553131,1710849034671,-1065.12,0.0049315,2]
[319553132,1710849034680,-500.0,0.0049315,120]
[319553133,1710849034690,-500.0,0.0049315,120]
[319553134,1710849034700,-500.0,0.0049315,120]
[319553135,1710849034709,-500.15099326,0.0049315,120]
[319553136,1710849034719,-500.0,0.0049315,120]
[319553137,1710849034729,-1053.06,0.0049315,120]
[319553138,1710849034738,-500.0,0.0049315,120]
[319553139,1710849034748,-3197.28,0.0049315,120]
[319553140,1710849034757,-500.0,0.0049315,120]
[319553141,1710849034767,-500.0,0.0049315,120]
[319553142,1710849034776,-833.35,0.0049315,120]
[319553143,1710849034786,-500.0,0.0049315,120]
[319553144,1710849034795,-675.66,0.0049315,120]
[319553145,1710849034805,-500.0,0.0049315,120]
[319553146,1710849034814,-500.0,0.0049315,120]
[319553147,1710849034826,-500.0,0.0049315,120]
[319553148,1710849034835,-1164.4,0.0049315,120]
[319553149,1710849034844,-328.64714257,0.0049315,120]
[319553150,1710849034854,-5000.0,0.0049315,120]
[319553151,1710849034863,-40934.15,0.0049315,120]
[319553152,1710849034873,-737.99,0.0049315,10]
[319553153,1710849034882,-1351.91,0.0049315,120]
[319553154,1710849034892,-3523.39,0.0049315,120]
[319553155,1710849034903,-500.0,0.0049315,120]
[319553156,1710849034912,-1000.0,0.0049315,7]
[319553157,1710849034922,-1957.41,0.0049315,120]
[319553158,1710849034931,-12809.13,0.0049315,120]
[319553159,1710849034941,-407.01238891,0.0049315,120]
[319553160,1710849034950,-1843.63,0.0049315,120]
[319553161,1710849034959,-500.0,0.0049315,120]
[319553162,1710849034969,-222.90013264,0.0049315,120]
[319553163,1710849034978,-623.97,0.0049315,120]
[319553164,1710849034988,-833.34,0.0049315,120]
[319553165,1710849034997,-3605.87,0.0049315,120]
[319553166,1710849035007,-500.0,0.0049315,120]
[319553167,1710849035017,-250.0,0.00498356,120]
[319553168,1710849035027,-20000.0,0.005,120]
[319553169,1710849035037,-2000.0,0.005,120]
[319553170,1710849035047,-10000.0,0.00536205,120]
[319553171,1710849035057,-250.0,0.00549178,120]
[319553172,1710849035066,-250.0,0.00598356,120]
[319553173,1710849035078,-500.0,0.006,120]
[319553174,1710849035087,-20000.0,0.006,120]
[319553175,1710849035097,-2000.0,0.006,120]
[319553176,1710849035111,-250.0,0.00649178,120]
[319553177,1710849035121,-1082.0,0.0065,120]
[319553178,1710849035130,-10000.0,0.00652375,120]
[319553179,1710849035140,-508.51581696,0.00652744,120]
[319553180,1710849035150,-433.11746748,0.00652967,30]
[319553181,1710849035161,-8999.50001808,0.00689,120]
[319553182,1710849035257,-29998.2028,0.00695,120]
[319553183,1710849035268,-250.0,0.00698356,120]
[319553184,1710849035277,-1000.0,0.007,120]
[319553185,1710849035287,-500.0,0.007,120]
[319553186,1710849035296,-508.51581696,0.0071,120]
[319553187,1710849035306,-500.0,0.00712328,120]